bitfinex-derivatives/quotes_BTCF0:USTF0_20250528
["timestamp","ask_amount","ask_price","bid_price","bid_amount"]
[1748461821418,1.84981087,107170.0,107160.0,0.08523021]
[1748461821714,1.84933087,107170.0,107160.0,0.08523021]
[1748461822105,1.84933087,107170.0,107160.0,0.08522699]
[1748461822712,1.84933087,107170.0,107160.0,0.08522974]
[1748461822913,1.84933087,107170.0,107160.0,0.07204507]
[1748461823216,1.0807692,107170.0,107160.0,0.08523531]
[1748461823420,1.84901087,107170.0,107160.0,0.08523531]
[1748461823715,1.84905087,107170.0,107160.0,0.27182181]
[1748461823909,1.84905087,107170.0,107160.0,0.08523531]
[1748461824103,1.84905087,107170.0,107160.0,0.08518423]
[1748461824305,1.29345087,107170.0,107160.0,0.11518423]
[1748461824604,1.84909087,107170.0,107160.0,0.11517159]
[1748461825608,1.84909087,107170.0,107160.0,0.11519221]
[1748461826208,1.89195265,107170.0,107160.0,0.11519221]
[1748461826708,1.89255265,107170.0,107160.0,0.11519221]
[1748461826910,1.89255265,107170.0,107160.0,0.1152055]
[1748461827122,1.89247265,107170.0,107160.0,0.1152055]
[1748461827420,1.89235265,107170.0,107160.0,0.11520545]
[1748461828413,1.94957188,107170.0,107160.0,0.08520545]
[1748461828815,1.99272576,107170.0,107160.0,0.02071459]
[1748461829015,1.99272576,107170.0,107160.0,0.02072372]
[1748461829216,1.99272576,107170.0,107160.0,0.05312297]
[1748461829415,1.72282486,107170.0,107160.0,0.02348472]
[1748461829614,1.93550653,107170.0,107160.0,0.00012]
[1748461829816,1.93550653,107170.0,107160.0,0.01340335]
[1748461830014,1.93550653,107170.0,107160.0,0.0179189]
[1748461830321,1.93550653,107170.0,107160.0,0.01792124]
[1748461830718,2.1481882,107170.0,107160.0,0.01792124]
[1748461831019,1.96464433,107170.0,107160.0,0.01792124]
[1748461831219,2.177326,107170.0,107160.0,0.01792124]
[1748461831423,1.621286,107170.0,107160.0,4e-08]
[1748461831626,1.621286,107170.0,107120.0,0.0947228]
[1748461831627,0.1866736,107110.0,107100.0,0.04725727]
[1748461831809,0.1866736,107110.0,107070.0,0.000324]
[1748461831810,0.0466754,107100.0,107070.0,0.000324]
[1748461832011,0.1867782,107050.0,107040.0,0.18720146]
[1748461832324,1.33916,107050.0,107040.0,0.06040576]
[1748461832619,1.70058266,107050.0,107040.0,0.18732146]
[1748461832821,1.70058266,107050.0,107040.0,0.47732146]
[1748461832822,1.40058266,107050.0,107040.0,0.47732146]
[1748461833116,0.1867957,107040.0,107030.0,0.02199974]
[1748461833422,1.89407737,107040.0,107030.0,0.02199974]
[1748461833717,0.99383915,107040.0,107030.0,0.20893284]
[1748461833921,0.91850879,107040.0,107030.0,0.22881284]
[1748461834424,0.1868306,107020.0,107010.0,1.00005311]
[1748461834725,2.69793493,107020.0,107010.0,1.00005311]
[1748461834930,2.59078362,107020.0,107010.0,1.00005311]
[1748461835116,2.36382266,107020.0,107010.0,1.00017311]
[1748461835428,3.11069326,107020.0,107010.0,1.00017311]
[1748461835613,3.32337493,107020.0,107010.0,1.18702111]
[1748461835812,2.36382266,107020.0,107010.0,1.18690111]
[1748461836014,2.33142266,107020.0,107010.0,1.42690111]
[1748461836228,2.33142266,107020.0,107010.0,1.44482111]
[1748461836229,1.32298266,107020.0,107010.0,1.44482111]
[1748461836420,0.55134266,107020.0,107010.0,1.44482111]
[1748461836623,0.55198266,107020.0,107010.0,1.45482111]
[1748461836824,0.45198266,107020.0,107010.0,1.44482111]
[1748461837009,1.10061326,107020.0,107010.0,1.25797311]
[1748461837321,1.10061326,107020.0,107010.0,1.28825311]
[1748461837322,1.59037326,107020.0,107010.0,1.28825311]
[1748461837512,0.61422266,107020.0,107010.0,1.47510121]
[1748461837829,0.67282266,107020.0,107010.0,1.68890288]
[1748461838022,0.67282266,107020.0,107010.0,2.39314688]
[1748461838333,0.00062266,107020.0,107010.0,2.39414688]
[1748461838627,0.00013952,107030.0,107020.0,0.1868301]
[1748461838818,0.45145952,107030.0,107020.0,1.10374776]
[1748461839014,0.45141952,107030.0,107020.0,1.35374776]
[1748461839212,0.45133952,107030.0,107020.0,1.35374776]
[1748461840516,0.00013952,107030.0,107020.0,0.99294776]
[1748461840716,0.00013952,107030.0,107020.0,1.35374776]
[1748461840717,0.45101952,107030.0,107020.0,1.35374776]
[1748461840920,0.00013952,107030.0,107020.0,1.35374776]
[1748461841223,0.00013952,107030.0,107020.0,1.35974776]
[1748461841423,0.00013952,107030.0,107020.0,1.14706609]
[1748461841723,0.00013952,107030.0,107020.0,1.40844776]
[1748461842418,0.00013952,107030.0,107020.0,1.41844776]
[1748461842619,0.36220344,107050.0,107040.0,0.1867951]
[1748461842821,0.84183053,107050.0,107040.0,0.64947677]
[1748461843123,0.26103053,107050.0,107040.0,1.05857677]
[1748461843327,0.00103053,107050.0,107040.0,1.40199677]
[1748461843517,0.3608,107060.0,107050.0,0.1867777]
[1748461843721,0.5808,107060.0,107050.0,0.70675937]
[1748461843919,1.0312,107060.0,107050.0,0.80016737]
[1748461844220,0.81258284,107070.0,107060.0,0.1867602]
[1748461844425,0.72234284,107070.0,107060.0,0.65774187]
[1748461844731,0.36154284,107070.0,107060.0,0.65774187]
[1748461845018,0.81166284,107070.0,107060.0,0.65774187]
[1748461845223,1.57188731,107070.0,107060.0,0.21]
[1748461845426,0.90394284,107070.0,107060.0,0.2168803]
[1748461845619,0.36154284,107070.0,107060.0,0.74296197]
[1748461845925,0.13154284,107070.0,107060.0,0.79346197]
[1748461846122,0.10154284,107070.0,107060.0,0.79246197]
[1748461846327,0.10154284,107070.0,107060.0,1.40326197]
[1748461846328,0.00154284,107070.0,107060.0,1.40326197]
[1748461846533,0.00154284,107070.0,107060.0,1.72326197]
[1748461846916,0.00154284,107070.0,107060.0,1.72426197]
[1748461847224,0.00202565,107090.0,107080.0,0.1867254]
[1748461847425,0.00202565,107090.0,107080.0,0.80329107]
[1748461847722,0.1,107110.0,107090.0,0.04807407]
[1748461847929,0.62155151,107120.0,107100.0,0.3301267]
[1748461848119,1.244631,107120.0,107110.0,0.18741892]
[1748461848441,1.09406933,107120.0,107110.0,0.38766867]
[1748461848621,0.41392933,107120.0,107110.0,0.38766867]
[1748461848813,0.00102933,107120.0,107110.0,0.69370634]
[1748461849127,0.00102933,107120.0,107110.0,1.05450634]
[1748461849518,0.39233952,107130.0,107120.0,0.1866557]
[1748461849715,0.0301,107140.0,107130.0,0.1866382]
[1748461850019,0.10976,107150.0,107140.0,0.1866208]
[1748461850322,0.0301,107160.0,107150.0,0.1866034]
[1748461850624,0.36220068,107170.0,107160.0,0.186586]
[1748461850625,0.51220068,107170.0,107160.0,0.186586]
[1748461850821,1.47796235,107170.0,107160.0,0.366586]
[1748461851029,1.51016235,107170.0,107160.0,0.366586]
[1748461851218,1.51016235,107170.0,107160.0,0.36720866]
[1748461851523,1.51016235,107170.0,107160.0,0.36732866]
[1748461852118,1.29708068,107170.0,107160.0,0.36732866]
[1748461852313,0.48360068,107170.0,107160.0,0.72812866]
[1748461852615,0.45140068,107170.0,107160.0,1.03412633]
[1748461852824,0.4105288,107170.0,107160.0,1.03412633]
[1748461853019,0.2050509,107170.0,107160.0,1.03412633]
[1748461853220,0.00013952,107180.0,107170.0,0.1865686]
[1748461853425,0.00013952,107180.0,107170.0,0.4465686]
[1748461853823,0.45341952,107180.0,107170.0,0.44719126]
[1748461854426,0.45441952,107180.0,107170.0,0.65987293]
[1748461854625,0.48721952,107180.0,107170.0,0.65987293]
[1748461855225,0.48721952,107180.0,107170.0,0.44719126]
[1748461855615,0.06453952,107180.0,107170.0,0.44719126]
[1748461855821,0.51765952,107180.0,107170.0,0.44719126]
[1748461856123,0.51765952,107180.0,107170.0,0.65987293]
[1748461856124,0.48805952,107180.0,107170.0,0.65987293]
[1748461856720,0.48805952,107180.0,107170.0,0.44719126]
[1748461857029,0.51865952,107180.0,107170.0,0.44719126]
[1748461857417,0.51845952,107180.0,107170.0,0.44719126]
[1748461857622,1.28849239,107180.0,107170.0,0.44719126]
[1748461858024,1.33849239,107180.0,107170.0,0.44719126]
[1748461858220,1.32849239,107180.0,107170.0,0.18731126]
[1748461858415,1.70849239,107180.0,107170.0,0.22719126]
[1748461858626,1.35557239,107180.0,107170.0,0.00074266]
[1748461858823,1.91821239,107180.0,107170.0,0.00062266]
[1748461859130,1.91821239,107180.0,107170.0,0.18731136]
[1748461859724,1.91821239,107180.0,107170.0,0.00074266]
[1748461860531,1.91789239,107180.0,107170.0,0.18731136]
[1748461861115,1.70825072,107180.0,107170.0,0.18731136]
[1748461861327,1.92093239,107180.0,107170.0,0.18731136]
[1748461861527,1.70825072,107180.0,107170.0,0.18731136]
[1748461861734,1.92093239,107180.0,107170.0,0.18731136]
[1748461862233,1.92161239,107180.0,107170.0,0.18731136]
[1748461862432,1.52245952,107180.0,107170.0,0.18731136]
[1748461862626,1.14289082,107180.0,107170.0,0.21731136]
[1748461862828,1.70905082,107180.0,107170.0,0.21731136]
[1748461863136,1.92173249,107180.0,107170.0,0.21731136]
[1748461863725,1.92173249,107180.0,107170.0,0.18731136]
[1748461863933,1.92173249,107180.0,107170.0,0.18719136]
[1748461864137,1.70905082,107180.0,107170.0,0.18731136]
[1748461864330,1.92173249,107180.0,107170.0,0.18731136]
[1748461864837,0.95633952,107180.0,107170.0,0.18731136]
[1748461865028,1.70893072,107180.0,107170.0,0.22731136]
[1748461865633,1.70893072,107180.0,107170.0,0.23182691]
[1748461865836,1.70909072,107180.0,107170.0,0.23182691]
[1748461866430,1.92177239,107180.0,107170.0,0.23182691]
[1748461866826,1.92177239,107180.0,107170.0,0.23170691]
[1748461867023,1.92177239,107180.0,107170.0,0.23182691]
[1748461867220,1.70909072,107180.0,107170.0,0.23182691]
[1748461867425,1.92177239,107180.0,107170.0,0.23182691]
[1748461868833,1.70841072,107180.0,107170.0,0.23182691]
[1748461869135,0.72633952,107180.0,107170.0,0.44450858]
[1748461869339,0.16553952,107180.0,107170.0,1.03530858]
[1748461869544,0.03493952,107180.0,107170.0,0.82262691]
[1748461869834,0.06603952,107180.0,107170.0,1.03530858]
[1748461870026,0.06603952,107180.0,107170.0,1.11800858]
[1748461870222,0.06603952,107180.0,107170.0,1.09800858]
[1748461870430,0.06603952,107180.0,107170.0,0.88532691]
[1748461871132,0.06603952,107180.0,107170.0,1.09800858]
[1748461871546,1.06643102,107180.0,107170.0,0.52452691]
[1748461871745,1.63911269,107180.0,107170.0,0.28182711]
[1748461872232,1.68911269,107180.0,107170.0,0.19182711]
[1748461872429,1.68911269,107180.0,107170.0,0.19170711]
[1748461872638,1.68911269,107180.0,107170.0,0.19182711]
[1748461874126,0.56867952,107180.0,107170.0,0.40450878]
[1748461874327,0.51859952,107180.0,107170.0,1.03530878]
[1748461874528,0.06603952,107180.0,107170.0,0.73880878]
[1748461874726,0.03493952,107180.0,107170.0,1.09960878]
[1748461874926,0.00213952,107180.0,107170.0,1.09960878]
[1748461875734,0.06723952,107180.0,107170.0,1.09960878]
[1748461876738,0.61459122,107180.0,107170.0,0.52612711]
[1748461876933,0.61459122,107180.0,107170.0,0.46170711]
[1748461877129,0.61459122,107180.0,107170.0,0.46182711]
[1748461877329,0.82727289,107180.0,107170.0,0.46170711]
[1748461877538,0.82727289,107180.0,107170.0,0.46182711]
[1748461877539,0.77021246,107180.0,107170.0,0.46182711]
[1748461878033,1.13021246,107180.0,107170.0,0.46182711]
[1748461878229,0.83094076,107180.0,107170.0,0.67450878]
[1748461878440,0.03513952,107180.0,107170.0,1.03530878]
[1748461878644,0.03513952,107180.0,107170.0,1.09840878]
[1748461879139,0.00213952,107180.0,107170.0,1.09840878]
[1748461880134,0.00013952,107180.0,107170.0,1.10440878]
[1748461880340,0.00013952,107180.0,107170.0,1.10465402]
[1748461881034,0.00013952,107180.0,107170.0,1.30244425]
[1748461881233,0.00013952,107180.0,107170.0,1.51281716]
[1748461881435,0.00013952,107180.0,107170.0,1.69237611]
[1748461882345,2e-08,107180.0,107170.0,1.69237611]
[1748461882548,0.1,107200.0,107190.0,0.1865343]
[1748461882740,1e-07,107200.0,107190.0,1.86248958]
[1748461882939,1e-07,107200.0,107190.0,2.01246628]
[1748461883141,1e-07,107200.0,107190.0,1.71258082]
[1748461883334,1e-07,107200.0,107190.0,1.92526249]
[1748461883845,1e-07,107200.0,107190.0,1.92626249]
[1748461884435,1e-07,107200.0,107190.0,1.92526249]
[1748461884742,1e-07,107200.0,107190.0,1.93705249]
[1748461885142,1e-07,107200.0,107190.0,1.72437082]
[1748461885337,0.4208001,107200.0,107190.0,0.90948282]
[1748461885539,0.4208001,107200.0,107190.0,0.19894696]
[1748461885540,1.3110769,107200.0,107190.0,0.19894696]
[1748461885739,1.56028277,107200.0,107190.0,0.30894696]
[1748461886243,0.80732597,107200.0,107190.0,0.52174863]
[1748461886440,0.80732597,107200.0,107190.0,0.58754863]
[1748461886441,0.5159201,107200.0,107190.0,0.58754863]
[1748461886644,0.0618001,107200.0,107190.0,0.58754863]
[1748461886843,0.0618001,107200.0,107190.0,0.58354863]
[1748461887049,0.0618001,107200.0,107190.0,0.57954863]
[1748461887346,0.0638001,107200.0,107190.0,0.57954863]
[1748461887847,0.0618001,107200.0,107190.0,0.57854863]
[1748461888553,0.5155601,107200.0,107190.0,0.57854863]
[1748461888948,0.5155601,107200.0,107190.0,0.93934863]
[1748461889447,0.5155601,107200.0,107190.0,0.57854863]
[1748461889747,0.702077,107200.0,107190.0,0.36586696]
[1748461889948,0.702077,107200.0,107190.0,0.33274696]
[1748461890246,0.702077,107200.0,107190.0,0.33286696]
[1748461890441,0.702077,107200.0,107190.0,0.33274696]
[1748461890643,0.702077,107200.0,107190.0,0.33286696]
[1748461891853,1.062877,107200.0,107190.0,0.33286696]
[1748461892242,1.162877,107200.0,107190.0,0.33286696]
[1748461892547,1.162877,107200.0,107190.0,0.30006696]
[1748461893751,1.192877,107200.0,107190.0,0.30006696]
[1748461895455,1.485957,107200.0,107190.0,0.30006696]
[1748461895844,0.919117,107200.0,107190.0,0.29994696]
[1748461896044,1.484957,107200.0,107190.0,0.30458251]
[1748461896254,1.484957,107200.0,107190.0,0.33498251]
[1748461897145,1.52809038,107200.0,107190.0,0.33498251]
[1748461897553,1.52809038,107200.0,107190.0,0.30458251]
[1748461898653,0.96229025,107200.0,107190.0,0.30458251]
[1748461898864,1.41473025,107200.0,107190.0,0.30458251]
[1748461899248,1.41473025,107200.0,107190.0,0.33658251]
[1748461899657,0.96229025,107200.0,107190.0,0.33658251]
[1748461899856,1.41453025,107200.0,107190.0,0.33658251]
[1748461900359,1.41429025,107200.0,107190.0,0.30446251]
[1748461901156,1.41429025,107200.0,107190.0,0.30458251]
[1748461901955,0.77577335,107200.0,107190.0,0.30446251]
[1748461902258,0.4226001,107200.0,107190.0,0.51726418]
[1748461902463,0.5140001,107200.0,107190.0,0.58106418]
[1748461903348,0.5138801,107200.0,107190.0,0.58106418]
[1748461904246,1e-07,107200.0,107190.0,0.58106418]
[1748461904451,1e-07,107200.0,107190.0,1.34358485]
[1748461905261,1e-07,107200.0,107190.0,1.38720383]
[1748461905460,1e-07,107200.0,107190.0,1.48249183]
[1748461905757,1e-07,107200.0,107190.0,1.63703764]
[1748461905957,1e-07,107200.0,107190.0,1.87783597]
[1748461906161,1e-07,107200.0,107190.0,1.42835597]
[1748461907555,1e-07,107200.0,107190.0,1.42935597]
[1748461907757,1e-07,107200.0,107190.0,1.67935597]
[1748461907960,0.40539901,107230.0,107220.0,0.1864821]
[1748461908162,0.0643,107240.0,107230.0,0.1864647]
[1748461908456,0.06392709,107240.0,107230.0,0.72071485]
[1748461908658,0.06392709,107240.0,107230.0,0.75071485]
[1748461908866,0.45061594,107250.0,107230.0,0.75071485]
[1748461908867,0.033,107250.0,107240.0,0.1864473]
[1748461909054,0.00013952,107250.0,107240.0,1.32338355]
[1748461909251,0.00013952,107250.0,107240.0,1.32238355]
[1748461909460,0.00013952,107250.0,107240.0,1.36658662]
[1748461909964,0.00013952,107250.0,107240.0,1.15390495]
[1748461910161,0.00013952,107250.0,107240.0,1.11032454]
[1748461910464,0.00013952,107250.0,107240.0,0.75231454]
[1748461910857,0.00013952,107250.0,107240.0,0.75031454]
[1748461911256,0.00213952,107250.0,107240.0,0.75031454]
[1748461911563,1.54501129,107250.0,107240.0,0.10378557]
[1748461911863,1.73883129,107250.0,107240.0,0.29035307]
[1748461912052,1.80253129,107250.0,107240.0,0.29035307]
[1748461912252,1.80253129,107250.0,107240.0,0.19035307]
[1748461912453,1.80253129,107250.0,107240.0,0.19023307]
[1748461912749,1.80253129,107250.0,107240.0,0.20452397]
[1748461912953,1.80253129,107250.0,107240.0,0.20452401]
[1748461913160,1.80253129,107250.0,107240.0,0.204524]
[1748461913353,1.80253129,107250.0,107240.0,0.19023307]
[1748461913558,1.80253129,107250.0,107240.0,0.19035307]
[1748461913754,1.80253129,107250.0,107240.0,0.20452407]
[1748461913949,1.80253129,107250.0,107240.0,0.20477382]
[1748461914257,1.58984962,107250.0,107240.0,0.19097573]
[1748461914457,1.58984962,107250.0,107240.0,0.20514673]
[1748461914651,1.58984962,107250.0,107240.0,0.19097573]
[1748461914852,1.58984962,107250.0,107240.0,0.20514674]
[1748461915057,2.20259124,107250.0,107240.0,0.00452823]
[1748461915252,1.95259124,107250.0,107240.0,0.19097583]
[1748461915468,1.95259124,107250.0,107240.0,0.00452823]
[1748461915760,2.03861429,107250.0,107240.0,0.01869974]
[1748461915962,2.03861429,107250.0,107240.0,0.19085573]
[1748461916262,1.73176861,107250.0,107240.0,0.19085573]
[1748461916658,1.73176861,107250.0,107240.0,0.19097573]
[1748461917465,1.16800861,107250.0,107240.0,0.19097573]
[1748461917764,1.16800861,107250.0,107240.0,0.4536574]
[1748461917765,1.58860962,107250.0,107240.0,0.4536574]
[1748461918059,0.83873952,107250.0,107240.0,0.4848574]
[1748461918268,0.92821952,107250.0,107240.0,0.7552574]
[1748461918459,1.06264962,107250.0,107240.0,0.76942654]
[1748461918767,1.06264962,107250.0,107240.0,0.76942655]
[1748461918768,1.42344962,107250.0,107240.0,0.76942655]
[1748461919069,1.42144962,107250.0,107240.0,0.52634441]
[1748461919361,1.42144962,107250.0,107240.0,0.51205573]
[1748461919568,1.42144962,107250.0,107240.0,0.48097573]
[1748461919754,1.42144962,107250.0,107240.0,0.49514473]
[1748461919956,1.42144962,107250.0,107240.0,0.49502473]
[1748461920156,1.42144962,107250.0,107240.0,0.49514473]
[1748461920357,1.42144962,107250.0,107240.0,0.28097573]
[1748461920563,1.47144962,107250.0,107240.0,0.29514566]
[1748461921067,1.47144962,107250.0,107240.0,0.295252]
[1748461922068,1.47072962,107250.0,107240.0,0.295252]
[1748461922271,1.28429952,107250.0,107240.0,0.54054085]
[1748461922460,1.42072962,107250.0,107240.0,0.54054085]
[1748461922665,1.23429952,107250.0,107240.0,0.57104052]
[1748461922864,1.42072962,107250.0,107240.0,0.34407573]
[1748461923059,1.42072962,107250.0,107240.0,0.57104245]
[1748461923771,0.78473952,107250.0,107240.0,0.57104245]
[1748461923965,0.51131952,107250.0,107240.0,0.91104245]
[1748461924169,0.48091952,107250.0,107240.0,0.8967574]
[1748461924468,0.48091952,107250.0,107240.0,0.91104347]
[1748461924679,0.48083952,107250.0,107240.0,1.45184347]
[1748461924870,0.48075952,107250.0,107240.0,1.17284328]
[1748461925079,0.48075952,107250.0,107240.0,1.1595574]
[1748461925375,2e-08,107250.0,107240.0,1.6465249]
[1748461925573,2e-08,107250.0,107240.0,1.65103662]
[1748461925869,2e-08,107250.0,107240.0,1.22567328]
[1748461926061,2e-08,107250.0,107240.0,1.43735483]
[1748461926372,2e-08,107250.0,107240.0,1.22667309]
[1748461926565,2e-08,107250.0,107240.0,0.74603921]
[1748461926762,0.06410002,107250.0,107240.0,0.7317574]
[1748461927071,0.06410002,107250.0,107240.0,0.74603734]
[1748461927271,0.06410002,107250.0,107240.0,0.74603736]
[1748461927867,0.25053012,107250.0,107240.0,0.50285569]
[1748461928062,0.61133012,107250.0,107240.0,0.50285569]
[1748461928256,0.61133012,107250.0,107240.0,0.71553643]
[1748461928462,0.42490002,107250.0,107240.0,0.74851659]
[1748461928658,0.61133012,107250.0,107240.0,0.74863652]
[1748461928964,0.42490002,107250.0,107240.0,0.7486365]
[1748461929468,0.61133022,107250.0,107240.0,0.7486365]
[1748461929675,0.61133022,107250.0,107240.0,0.74863694]
[1748461930171,0.61133022,107250.0,107240.0,0.74863695]
[1748461930376,0.61133022,107250.0,107240.0,0.50285529]
[1748461930575,0.61133022,107250.0,107240.0,0.48857573]
[1748461930965,0.61133022,107250.0,107240.0,0.50285533]
[1748461931870,0.61133022,107250.0,107240.0,0.48857573]
[1748461932066,0.61133022,107250.0,107240.0,0.5028574]
[1748461933664,1.04401189,107250.0,107240.0,0.2838099]
[1748461933875,1.09401189,107250.0,107240.0,0.30014829]
[1748461934062,0.93814616,107250.0,107240.0,0.28585573]
[1748461934262,1.02416921,107250.0,107240.0,0.30014882]
[1748461934463,1.02416921,107250.0,107240.0,0.30014881]
[1748461934681,1.02416921,107250.0,107240.0,0.30026881]
[1748461934883,1.13604921,107250.0,107240.0,0.30026881]
[1748461935076,1.13604921,107250.0,107240.0,0.02382131]
[1748461935077,1.34873088,107250.0,107240.0,0.02382131]
[1748461935273,1.38715895,107250.0,107240.0,0.02082131]
[1748461935585,0.1864475,107240.0,107230.0,0.23344971]
[1748461935764,1.84940909,107240.0,107230.0,0.28344971]
[1748461936078,1.84940909,107240.0,107230.0,0.28356971]
[1748461936781,1.84940909,107240.0,107230.0,0.05049291]
[1748461936973,1.84940909,107240.0,107220.0,0.31284652]
[1748461936974,0.1864649,107230.0,107220.0,0.00013952]
[1748461937276,0.1864649,107230.0,107210.0,0.00139913]
[1748461937277,0.1864823,107220.0,107210.0,0.18766544]
[1748461937463,1.07691421,107220.0,107210.0,0.18766544]
[1748461937669,0.89080482,107220.0,107210.0,0.18766544]
[1748461937865,1.23487291,107220.0,107210.0,0.70314711]
[1748461938171,1.42135521,107220.0,107210.0,0.70314711]
[1748461938366,1.23487291,107220.0,107210.0,0.49046544]
[1748461938565,0.87475291,107220.0,107210.0,0.49046544]
[1748461938980,1.06123521,107220.0,107210.0,0.49346544]
[1748461939483,0.42327291,107220.0,107210.0,0.49346544]
[1748461939777,0.81249291,107220.0,107210.0,0.70614711]
[1748461940380,0.99897521,107220.0,107210.0,0.49646544]
[1748461940563,1.09357521,107220.0,107210.0,0.49646544]
[1748461940975,1.09357521,107220.0,107210.0,0.49358544]
[1748461941173,1.42357521,107220.0,107210.0,0.49358544]
[1748461941473,1.42357521,107220.0,107210.0,0.49158544]
[1748461941863,1.42357521,107220.0,107210.0,0.45898544]
[1748461942376,1.48110712,107220.0,107210.0,0.45886544]
[1748461942580,1.53110712,107220.0,107210.0,0.45898544]
[1748461943281,1.47357521,107220.0,107210.0,0.21898544]
[1748461943478,1.47357521,107220.0,107210.0,0.29898544]
[1748461943682,1.28709291,107220.0,107210.0,0.29898544]
[1748461943871,1.28677291,107220.0,107210.0,0.71256711]
[1748461944181,1.47325511,107220.0,107210.0,0.49988544]
[1748461944378,1.47325511,107220.0,107210.0,0.32988544]
[1748461944881,1.47325511,107220.0,107210.0,0.26878544]
[1748461944882,1.68593678,107220.0,107210.0,0.26878544]
[1748461945375,1.68593678,107220.0,107210.0,0.26866544]
[1748461945780,1.68593678,107220.0,107210.0,0.26878544]
[1748461946181,1.68593678,107220.0,107210.0,0.08228574]
[1748461946379,1.74346869,107220.0,107210.0,0.00216574]
[1748461946682,1.82978855,107220.0,107210.0,0.18878544]
[1748461946884,1.72874688,107220.0,107210.0,0.18878544]
[1748461947080,1.72874688,107220.0,107210.0,0.22168544]
[1748461947477,1.72974688,107220.0,107210.0,0.23597316]
[1748461948074,1.72974688,107220.0,107210.0,0.23497316]
[1748461948269,1.73174688,107220.0,107210.0,0.23497316]
[1748461948574,1.64542702,107220.0,107210.0,0.23496935]
[1748461948774,0.89630482,107220.0,107210.0,0.47765102]
[1748461948973,0.96901291,107220.0,107210.0,0.72065068]
[1748461949183,1.15649521,107220.0,107210.0,0.50796901]
[1748461949487,1.35649521,107220.0,107210.0,0.50796901]
[1748461949684,1.35649521,107220.0,107210.0,0.44206901]
[1748461949887,1.35649521,107220.0,107210.0,0.47244803]
[1748461950078,1.35649521,107220.0,107210.0,0.45828544]
[1748461950079,1.35549521,107220.0,107210.0,0.45828544]
[1748461950275,1.56817688,107220.0,107210.0,0.25128544]
[1748461950489,1.61817688,107220.0,107210.0,0.25206676]
[1748461950787,1.61717688,107220.0,107210.0,0.25194676]
[1748461951176,1.61717688,107220.0,107210.0,0.25090102]
[1748461951381,1.61517688,107220.0,107210.0,0.25190075]
[1748461951875,1.61517688,107220.0,107210.0,0.2376197]
[1748461952075,1.61517688,107220.0,107210.0,0.25189851]
[1748461952276,1.61517688,107220.0,107210.0,0.2366197]
[1748461952475,1.61917688,107220.0,107210.0,0.25089851]
[1748461952677,1.61917688,107220.0,107210.0,0.25089858]
[1748461952876,1.67670879,107220.0,107210.0,0.2366197]
[1748461953294,1.46402712,107220.0,107210.0,0.2366197]
[1748461953485,1.67670879,107220.0,107210.0,0.2366197]
[1748461954887,1.67670879,107220.0,107210.0,0.25089687]
[1748461955682,1.67670879,107220.0,107210.0,0.00012]
[1748461955893,1.76302865,107220.0,107210.0,0.2010032]
[1748461956389,1.76302865,107220.0,107210.0,0.20100325]
[1748461956796,1.76302865,107220.0,107210.0,0.23320325]
[1748461957179,1.31278865,107220.0,107210.0,0.2332068]
[1748461957382,1.55078698,107220.0,107210.0,0.2641068]
[1748461957580,1.55078698,107220.0,107210.0,0.26410675]
[1748461957780,1.01378712,107220.0,107210.0,0.26410675]
[1748461957981,1.01378712,107220.0,107210.0,0.49240137]
[1748461957982,0.96378712,107220.0,107210.0,0.49240137]
[1748461958186,1.52646712,107220.0,107210.0,0.50679402]
[1748461958588,1.52634712,107220.0,107210.0,0.506794]
[1748461958787,0.98733521,107220.0,107210.0,0.50679387]
[1748461958988,0.95523521,107220.0,107210.0,0.73679362]
[1748461959189,1.40563521,107220.0,107210.0,0.72240137]
[1748461959398,1.40563521,107220.0,107210.0,0.52411705]
[1748461959700,1.40363521,107220.0,107210.0,0.52411691]
[1748461960004,1.46643521,107220.0,107210.0,0.52411712]
[1748461960197,1.46643521,107220.0,107210.0,0.5097197]
[1748461960389,1.78664879,107220.0,107210.0,0.30321864]
[1748461960891,1.78664879,107220.0,107210.0,0.30309864]
[1748461961095,1.78664879,107220.0,107210.0,0.30322636]
[1748461961687,1.78664879,107220.0,107210.0,0.3032355]
[1748461962186,1.66028698,107220.0,107210.0,0.1167367]
[1748461962393,1.87296865,107220.0,107210.0,0.23311673]
[1748461962696,1.87296865,107220.0,107210.0,0.23323676]
[1748461962697,1.81543674,107220.0,107210.0,0.23323676]
[1748461962998,1.81543674,107220.0,107210.0,0.23323688]
[1748461963396,1.81543674,107220.0,107210.0,0.1866197]
[1748461963597,1.93016762,107220.0,107210.0,0.20105068]
[1748461964294,1.84384776,107220.0,107210.0,0.20105068]
[1748461964500,1.84384776,107220.0,107210.0,0.20105067]
[1748461964893,1.84384776,107220.0,107210.0,0.1866197]
[1748461965093,1.84384776,107220.0,107210.0,0.20105054]
[1748461965303,1.84384776,107220.0,107210.0,0.20105742]
[1748461966188,1.84384776,107220.0,107210.0,0.20105728]
[1748461966391,1.84384776,107220.0,107210.0,0.20105955]
[1748461967200,1.84384776,107220.0,107210.0,0.1866197]
[1748461967407,1.84384776,107220.0,107210.0,0.2010591]
[1748461967600,1.84384776,107220.0,107210.0,0.20105915]
[1748461967898,1.82238888,107220.0,107210.0,0.01455971]
[1748461968104,2.26915114,107220.0,107210.0,0.01455868]
[1748461968294,0.1864997,107210.0,107200.0,0.00013952]
[1748461968491,1.29884271,107210.0,107200.0,0.01458002]
[1748461968697,1.34921562,107210.0,107200.0,0.01458002]
[1748461968895,1.34921562,107210.0,107200.0,2e-08]
[1748461968896,1.79001595,107210.0,107200.0,2e-08]
[1748461969099,0.1865518,107180.0,107170.0,0.00139971]
[1748461969305,0.1865692,107170.0,107160.0,0.2480827]
[1748461969504,1.33753395,107170.0,107160.0,0.2480827]
[1748461969803,1.12485228,107170.0,107160.0,0.2480827]
[1748461970009,1.12522519,107170.0,107160.0,0.2480827]
[1748461970199,1.1255981,107170.0,107160.0,0.2480827]
[1748461970397,1.33827977,107170.0,107160.0,0.06429]
[1748461970605,1.33827977,107170.0,107160.0,0.2197766]
[1748461970908,1.1255981,107170.0,107160.0,0.2198966]
[1748461971100,1.08240155,107170.0,107160.0,0.2524966]
[1748461971804,1.08240155,107170.0,107160.0,0.2534966]
[1748461972304,1.08240155,107170.0,107160.0,0.2544966]
[1748461972305,1.11340155,107170.0,107160.0,0.2544966]
[1748461973311,1.0558898,107170.0,107160.0,0.2544966]
[1748461973809,1.11340155,107170.0,107160.0,0.2544966]
[1748461974314,1.0558898,107170.0,107160.0,0.2544966]
[1748461974910,0.7746206,107170.0,107160.0,0.72717827]
[1748461975211,1.2852606,107170.0,107160.0,0.72717827]
[1748461975409,1.24218582,107170.0,107160.0,0.75987827]
[1748461975799,1.24218582,107170.0,107160.0,0.5471966]
[1748461976005,1.24218582,107170.0,107160.0,0.75987827]
[1748461976205,1.12994582,107170.0,107160.0,0.75987827]
[1748461976506,0.68154582,107170.0,107160.0,0.75987827]
[1748461976707,1.12986582,107170.0,107160.0,0.75987827]
[1748461977304,0.92986582,107170.0,107160.0,0.75987827]
[1748461979506,0.56906582,107170.0,107160.0,0.75987827]
[1748461980404,0.92986582,107170.0,107160.0,0.75987827]